fUST/lending_fUST_20250914
["ID","MTS","AMOUNT","RATE_DAILY","PERIOD"]
[385407859,1757842256032,-1542.2,0.00022739,3]
[385407860,1757842256043,-480.0,0.00022739,3]
[385407861,1757842256052,-14442.99,0.00022739,3]
[385407862,1757842256062,-3752.88,0.00022739,3]
[385407863,1757842256071,-2372.18,0.00022739,3]
[385407864,1757842256081,-2990.71,0.00022739,3]
[385407865,1757842256090,-364.89370268,0.00022739,3]
[385407866,1757842256099,-502.28979657,0.00022739,3]
[385407867,1757842256109,-915.36,0.00022739,3]
[385407868,1757842256118,-480.0,0.00022739,3]
[385407869,1757842256128,-480.0,0.00022739,3]
[385407870,1757842256137,-480.0,0.00022739,3]
[385407871,1757842256146,-550.01,0.00022739,3]
[385407872,1757842256155,-480.0,0.00022739,3]
[385407873,1757842256164,-2319.02,0.00022739,3]
[385407874,1757842256173,-689.3,0.00022739,3]
[385407875,1757842256182,-480.0,0.00022739,3]
[385407876,1757842256192,-539.56,0.00022739,3]
[385407877,1757842256201,-1110.62,0.00022739,3]
[385407878,1757842256211,-626.38,0.00022739,3]
[385407879,1757842256220,-7387.37,0.00022739,3]
[385407880,1757842256230,-1268.78,0.00022739,3]
[385407881,1757842256239,-480.0,0.00022739,3]
[385407882,1757842256249,-726.21,0.00022739,3]
[385407883,1757842256258,-815.14,0.00022739,3]
[385407884,1757842256268,-560.89,0.00022739,3]
[385407885,1757842256278,-816.39,0.00022739,3]
[385407886,1757842256287,-2900.75,0.00022739,3]
[385407887,1757842256297,-773.09,0.00022739,3]
[385407888,1757842256306,-3584.76,0.00022739,3]
[385407889,1757842256315,-1442.82,0.00022739,3]
[385407890,1757842256326,-643.08,0.00022739,3]
[385407891,1757842256335,-1041.98,0.00022739,3]
[385407892,1757842256345,-2318.4,0.00022739,3]
[385407893,1757842256354,-5897.22,0.00022739,3]
[385407894,1757842256363,-480.0,0.00022739,3]
[385407895,1757842256373,-480.0,0.00022739,3]
[385407896,1757842256382,-441.93904863,0.00022739,3]
[385407897,1757842256391,-480.0,0.00022739,3]
[385407898,1757842256401,-1026.22,0.00022739,3]
[385407899,1757842256410,-528.31,0.00022739,3]
[385407900,1757842256419,-939.18,0.00022739,3]
[385407901,1757842256428,-480.0,0.00022739,3]
[385407902,1757842256437,-2788.56,0.00022739,3]
[385407903,1757842256447,-511.63,0.00022739,3]
[385407904,1757842256457,-667.44,0.00022739,3]
[385407905,1757842256466,-1596.81,0.00022739,3]
[385407906,1757842256475,-716.08,0.00022739,3]
[385407907,1757842256486,-480.0,0.00022739,3]
[385407908,1757842256529,-1168.99,0.00022739,3]
[385407909,1757842256538,-1411.93,0.00022739,3]
[385407910,1757842256547,-480.0,0.00022739,3]
[385407911,1757842256556,-941.43,0.00022739,3]
[385407912,1757842256565,-823.14,0.00022739,3]
[385407913,1757842256574,-510.71,0.00022739,3]
[385407914,1757842256583,-708.99,0.00022739,3]
[385407915,1757842256593,-890.31,0.00022739,3]
[385407916,1757842256603,-480.0,0.00022739,3]
[385407917,1757842256612,-480.0,0.00022739,3]
[385407918,1757842256621,-480.0,0.00022739,3]
[385407919,1757842256630,-3242.87,0.00022739,3]
[385407920,1757842256639,-883.85,0.00022739,3]
[385407921,1757842256649,-480.0,0.00022739,3]
[385407922,1757842256658,-2283.8,0.00022739,3]
[385407923,1757842256668,-330.42,0.00022739,2]
[385407924,1757842256676,-480.0,0.00022739,3]
[385407925,1757842256686,-1074.27,0.00022739,3]
[385407926,1757842256698,-1241.46,0.00022739,3]
[385407927,1757842256708,-480.0,0.00022739,3]
[385407928,1757842256718,-484.93061813,0.00022739,3]
[385407929,1757842256727,-545.98,0.00022739,3]
[385407930,1757842256738,-967.27,0.00022739,3]
[385407931,1757842256748,-1003.54,0.00022739,3]
[385407932,1757842256757,-1147.64,0.00022739,3]
[385407933,1757842256767,-687.97,0.00022739,3]
[385407934,1757842256776,-480.0,0.00022739,3]
[385407935,1757842256787,-480.0,0.00022739,2]
[385407936,1757842256796,-567.67,0.00022739,3]
[385407937,1757842256807,-836.37,0.00022739,3]
[385407938,1757842256818,-779.88,0.00022739,3]
[385407939,1757842256827,-794.71,0.00022739,3]
[385407940,1757842256836,-493.55,0.00022739,3]
[385407941,1757842256846,-204.8740751,0.00022739,3]
[385407942,1757842256855,-4178.51,0.00022739,3]
[385407943,1757842256864,-29658.1,0.00022739,3]
[385407944,1757842256874,-450.09,0.00022739,3]
[385407945,1757842256883,-996.66,0.00022739,3]
[385407946,1757842256892,-720.0,0.00022772,20]
[385407947,1757842256901,-359.11121502,0.00022821,2]
[385407948,1757842256910,-1000.0,0.00022821,2]
[385407949,1757842256919,-300.0,0.00022821,2]
[385407950,1757842256928,-1000.0,0.00022821,2]
[385407951,1757842256941,-1000.0,0.00022821,2]
[385407952,1757842256951,-600.0,0.00022854,2]
[385407953,1757842256960,-168.0,0.00022874,2]
[385407954,1757842256970,-755.0,0.00022912,2]
[385407955,1757842256979,-500.0,0.00022962,2]
[385407956,1757842256989,-186.86257978,0.0002298,2]
[385407957,1757842256998,-235.0,0.00022996,2]
[385407958,1757842257008,-847.27885267,0.00023,3]
[385407959,1757842257018,-531.23217266,0.00023,3]
[385407960,1757842257027,-160.0,0.00023009,4]
[385407961,1757842257036,-498.8354366,0.00023013,3]
[385407962,1757842257045,-480.0,0.00023013,3]
[385407963,1757842257054,-480.0,0.00023013,3]
[385407964,1757842257063,-480.0,0.00023013,3]
[385407965,1757842257072,-480.0,0.00023013,3]
[385407966,1757842257082,-480.0,0.00023013,3]
[385407967,1757842257091,-480.0,0.00023013,3]
[385407968,1757842257101,-385.36645239,0.00023013,3]
[385407969,1757842257110,-480.0,0.00023013,3]
[385407970,1757842257119,-603.75,0.00023013,3]
[385407971,1757842257129,-517.94,0.00023013,3]
[385407972,1757842257138,-650.32,0.00023013,3]
[385407973,1757842257147,-480.0,0.00023013,3]
[385407974,1757842257156,-490.17684946,0.00023013,3]
[385407975,1757842257165,-480.0,0.00023013,3]
[385407976,1757842257174,-628.38,0.00023013,3]
[385407977,1757842257183,-480.0,0.00023013,3]
[385407978,1757842257192,-487.82,0.00023013,3]
[385407979,1757842257202,-480.0,0.00023013,3]
[385407980,1757842257211,-480.0,0.00023013,3]
[385407981,1757842257220,-715.55,0.00023013,3]
[385407982,1757842257229,-480.0,0.00023013,3]
[385407983,1757842257238,-857.15,0.00023013,3]
[385407984,1757842257247,-1039.56,0.00023013,3]
[385407985,1757842257256,-480.0,0.00023013,3]
[385407986,1757842257266,-1229.55,0.00023013,3]
[385407987,1757842257275,-1078.36,0.00023013,3]
[385407988,1757842257284,-814.79,0.00023013,3]
[385407989,1757842257294,-878.99,0.00023013,3]
[385407990,1757842257303,-480.0,0.00023013,3]
[385407991,1757842257312,-1413.74,0.00023013,3]
[385407992,1757842257322,-480.0,0.00023013,3]
[385407993,1757842257331,-1065.31,0.00023013,3]
[385407994,1757842257340,-480.0,0.00023013,3]
[385407995,1757842257350,-489.74,0.00023013,3]
[385407996,1757842257359,-480.0,0.00023013,3]
[385407997,1757842257368,-480.0,0.00023013,3]
[385407998,1757842257377,-783.43,0.00023013,3]
[385407999,1757842257386,-480.0,0.00023013,3]
[385408000,1757842257395,-1058.04,0.00023013,3]
[385408001,1757842257404,-480.0,0.00023013,3]
[385408002,1757842257414,-480.0,0.00023013,3]
[385408003,1757842257423,-728.82,0.00023013,3]
[385408004,1757842257432,-480.0,0.00023013,3]
[385408005,1757842257442,-724.7,0.00023013,3]
[385408006,1757842257451,-500.0,0.00023013,3]
[385408007,1757842257461,-480.0,0.00023013,3]
[385408008,1757842257470,-480.0,0.00023013,3]
[385408009,1757842257479,-414.06406411,0.00023013,3]
[385408010,1757842257488,-480.0,0.00023013,3]
[385408011,1757842257497,-736.46,0.00023013,3]
[385408012,1757842257507,-494.38489727,0.00023013,3]
[385408013,1757842257516,-953.32,0.00023013,3]
[385408014,1757842257526,-1851.05,0.00023013,3]
[385408015,1757842257535,-816.13,0.00023013,3]
[385408016,1757842257544,-916.64,0.00023013,3]
[385408017,1757842257553,-859.31,0.00023013,3]
[385408018,1757842257562,-425.56167581,0.00023013,3]
[385408019,1757842257571,-857.5,0.00023013,3]
[385408020,1757842257581,-558.54,0.00023013,3]
[385408021,1757842257591,-480.0,0.00023013,3]
[385408022,1757842257602,-1052.55,0.00023013,3]
[385408023,1757842257612,-298.79226273,0.00023013,3]
[385408024,1757842257622,-4286.53,0.00023013,3]
[385408025,1757842257631,-480.0,0.00023013,3]
[385408026,1757842257642,-3346.74,0.00023013,3]
[385408027,1757842257652,-480.0,0.00023013,3]
[385408028,1757842257662,-1303.6,0.00023013,3]
[385408029,1757842257671,-480.0,0.00023013,3]
[385408030,1757842257683,-1497.82,0.00023013,3]
[385408031,1757842257693,-578.87,0.00023013,3]
[385408032,1757842257703,-480.0,0.00023013,3]
[385408033,1757842257712,-480.0,0.00023013,3]
[385408034,1757842257722,-1428.71,0.00023013,3]
[385408035,1757842257732,-480.0,0.00023013,3]
[385408036,1757842257741,-1484.05,0.00023013,3]
[385408037,1757842257751,-512.92,0.00023013,3]
[385408038,1757842257761,-3665.55515571,0.00023013,3]
[385408039,1757842257916,-2432.27877857,0.00023013,3]
[385408043,1757842482224,-8467.74901614,0.00018888,3]
[385408044,1757842482475,-10000.01,0.00018888,3]
[385408045,1757842482753,-10000.01,0.00018888,3]
[385408046,1757842483027,-10000.01,0.00018888,3]
[385408047,1757842483272,-10000.01,0.00018888,3]
[385408048,1757842483575,-10000.01,0.00018888,3]
[385408049,1757842483836,-10000.01,0.00018888,3]
[385408050,1757842484108,-10000.01,0.00018888,3]
[385408051,1757842484385,-10000.01,0.00018888,3]
[385408052,1757842484645,-1550.05323058,0.00018888,3]
[385408053,1757842484675,-500.0,0.00019504,2]
[385408054,1757842484704,-899.90353884,0.00019701,2]
[385408055,1757842484760,-4100.09646116,0.00019701,2]
[385408056,1757842512407,-5000.0,0.00019701,2]
[385408057,1757842512439,-0.01,0.000199,2]
[385408060,1757842532455,-5000.0,0.00019701,2]
[385408061,1757842532491,-0.01,0.000199,2]
[385408062,1757842552554,-3467.74491148,0.000199,2]
[385408063,1757842552585,-211.08234201,0.00020413,2]
[385408064,1757842552630,-2642.35549302,0.00020413,2]
[385408065,1757842572646,-2170.95382625,0.00019504,2]
[385408066,1757842572675,-658.1023475,0.00019701,2]
[385408067,1757842572713,-4341.8976525,0.00019701,2]
[385408068,1757842592865,-2153.09047532,0.00020209,2]
[385408069,1757842592898,-693.82904936,0.00020413,2]
[385408070,1757842592939,-4306.17095064,0.00020413,2]
[385408071,1757842678466,159.0,8.3e-07,2]
[385408072,1757842679553,159.0,8.3e-07,2]
[385408073,1757842680793,159.0,8.3e-07,2]
[385408076,1757842813968,-5000.0,0.00019701,2]
[385408077,1757842834028,-5000.0,0.00019701,2]
[385408097,1757842884164,-5000.0,0.00019701,2]
[385408098,1757842924232,-5000.0,0.00019701,2]
[385408099,1757842924501,-3605.7972487,0.000199,2]
[385408100,1757842924529,-1000.0,0.0002,5]
[385408101,1757842924556,-204.17763446,0.00020241,2]
[385408102,1757842924584,-165.7745662,0.00020266,2]
[385408103,1757842924627,-300.0,0.0002034,2]
[385408104,1757842924654,-169.174537,0.00020341,2]
[385408105,1757842924684,-166.66666667,0.00020519,2]
[385408106,1757842924714,-380.06062658,0.00020619,2]
[385408107,1757842924771,-165.756534,0.00020893,20]
[385408108,1757842925230,-7256.63264492,0.00021148,2]
[385408109,1757842925283,-10000.01,0.00021148,2]
[385408110,1757842925309,-10000.01,0.00021148,2]
[385408111,1757842934204,-766.0,0.00019,2]
[385408112,1757842934243,-1040.0,0.00021147,2]
[385408113,1757842934252,-7428.01,0.00021148,2]
[385408114,1757842934341,-10000.01,0.00021148,2]
[385408115,1757842944205,-4348.79718064,0.00020936,2]
[385408116,1757842944243,-1302.41563872,0.00021148,2]
[385408118,1757843029612,609.3,0.00027397,120]
[385408123,1757843362540,1055.0,0.00024,30]
[385408156,1757843431874,-975.275,0.000199,2]
[385408168,1757843431978,-281.95768232,0.000199,2]
[385408440,1757843437735,-2244.87132466,0.000199,2]
[385408442,1757843437746,-223.381116,0.00020385,2]
[385408444,1757843437756,-761.7552936,0.00020462,2]
[385408446,1757843437765,-300.0,0.00021147,2]
[385408448,1757843437774,-300.0,0.00021147,2]
[385408450,1757843437784,-1200.0,0.00021148,2]
[385408452,1757843437794,-1200.0,0.00021148,2]
[385408454,1757843437803,-195.0,0.00021148,2]
[385408456,1757843437813,-3502.10400694,0.00021149,2]
[385408458,1757843437822,-173.0770525,0.00021327,2]
[385408460,1757843437832,-500.0,0.00021389,2]
[385408462,1757843437841,-500.0,0.00021389,2]
[385408464,1757843437851,-455.4458326,0.00021389,2]
[385408467,1757843437867,-44.5541674,0.00021389,2]
[385408469,1757843437877,-180.0,0.00021389,2]
[385408471,1757843437886,-388.49719725,0.00021389,2]
[385408474,1757843437902,-111.50280275,0.00021389,2]
[385408476,1757843437911,-500.0,0.00021389,2]
[385408478,1757843437920,-500.0,0.00021389,2]
[385408480,1757843437929,-320.6690032,0.00021389,2]
[385408482,1757843437938,-155.66758892,0.00021389,2]
[385408484,1757843437948,-500.0,0.00021389,2]
[385408486,1757843437957,-500.0,0.00021389,2]
[385408488,1757843437966,-500.0,0.00021389,2]
[385408490,1757843437975,-500.0,0.00021389,2]
[385408492,1757843437984,-500.0,0.00021389,2]
[385408494,1757843437993,-500.0,0.00021389,2]
[385408496,1757843438003,-500.0,0.00021389,2]
[385408498,1757843438012,-500.0,0.00021389,2]
[385408500,1757843438022,-266.76008992,0.00021389,2]
[385408502,1757843438031,-289.50310089,0.00021389,2]
[385408504,1757843438043,-210.49689911,0.00021389,2]
[385408506,1757843438052,-500.0,0.00021389,2]
[385408508,1757843438062,-500.0,0.00021389,2]
[385408510,1757843438070,-500.0,0.00021389,2]
[385408512,1757843438079,-500.0,0.00021389,2]
[385408514,1757843438088,-500.0,0.00021389,2]
[385408516,1757843438097,-480.0,0.0002139,7]
[385408518,1757843438107,-240.94087872,0.0002139,2]
[385408520,1757843438118,-721.86386792,0.0002139,2]
[385408722,1757843440059,-277.55444643,0.0002139,2]
[385408724,1757843440111,-1271.38706823,0.0002139,2]
[385408987,1757843442874,-6318.4,0.0002139,2]
[385409239,1757843445979,-1346.99539939,0.0002139,2]
[385409240,1757843445991,-5849.44260766,0.0002139,2]
[385409241,1757843446139,-1206.76219009,0.0002139,2]
[385409242,1757843446148,-217.77739939,0.00021426,2]
[385409243,1757843446158,-847.27885267,0.00021426,2]
[385409244,1757843446167,-160.0,0.00021426,2]
[385409245,1757843446176,-170.14290619,0.00021473,2]
[385409246,1757843446185,-194.61,0.00021477,10]
[385409247,1757843446194,-224.59137886,0.00021485,5]
[385409248,1757843446203,-500.0,0.00021486,2]
[385409249,1757843446212,-264.41626645,0.00021486,2]
[385409250,1757843446221,-273.10078082,0.00021486,2]
[385409251,1757843446230,-500.0,0.00021486,2]
[385409252,1757843446239,-500.0,0.00021486,2]
[385409253,1757843446248,-500.0,0.00021486,2]
[385409254,1757843446257,-500.0,0.00021486,2]
[385409255,1757843446266,-500.0,0.00021486,2]
[385409256,1757843446276,-500.0,0.00021486,2]
[385409257,1757843446285,-500.0,0.00021486,2]
[385409258,1757843446294,-385.60630959,0.00021486,2]
[385409259,1757843446303,-500.0,0.00021486,2]
[385409260,1757843446312,-500.0,0.00021486,2]
[385409261,1757843446321,-500.0,0.00021486,2]
[385409262,1757843446330,-500.0,0.00021486,2]
[385409263,1757843446339,-500.0,0.00021486,2]
[385409264,1757843446348,-500.0,0.00021486,2]
[385409265,1757843446358,-200.0,0.00021486,2]
[385409266,1757843446367,-500.0,0.00021486,2]
[385409267,1757843446376,-500.0,0.00021486,2]
[385409268,1757843446385,-500.0,0.00021486,2]
[385409269,1757843446394,-500.0,0.00021486,2]
[385409270,1757843446403,-500.0,0.00021486,2]
[385409271,1757843446412,-500.0,0.00021486,2]
[385409272,1757843446421,-500.0,0.00021486,2]
[385409273,1757843446430,-500.0,0.00021486,2]
[385409274,1757843446439,-314.88275914,0.00021486,2]
[385409275,1757843446448,-500.0,0.00021486,2]
[385409276,1757843446457,-500.0,0.00021486,2]
[385409277,1757843446466,-680.57990968,0.00021486,2]
[385409278,1757843446475,-680.57990968,0.00021486,2]
[385409279,1757843446484,-680.57990968,0.00021486,2]
[385409280,1757843446493,-680.57990968,0.00021486,2]
[385409281,1757843446512,-60026.74048769,0.00021487,2]
[385409282,1757843446521,-715.18770173,0.00021573,2]
[385409283,1757843446530,-179.859,0.00021586,2]
[385409284,1757843446751,-168.0,0.0002162,2]
[385409285,1757843446761,-328.0,0.00021677,2]
[385409286,1757843446771,-328.0,0.00021677,2]
[385409287,1757843446780,-328.0,0.00021677,2]
[385409288,1757843446789,-328.0,0.00021677,2]
[385409289,1757843446799,-328.0,0.00021677,2]
[385409290,1757843446809,-328.0,0.00021677,2]
[385409291,1757843446820,-328.0,0.00021677,2]
[385409292,1757843446830,-328.0,0.00021677,2]
[385409293,1757843446840,-264.39640151,0.00021677,2]
[385409294,1757843446849,-233.1999649,0.00021702,2]
[385409295,1757843446859,-1477.53368608,0.00021731,2]
[385409296,1757843446868,-570.89,0.00021807,3]
[385409297,1757843446877,-314.15,0.00021807,3]
[385409298,1757843446886,-157.07,0.00021807,3]
[385409299,1757843446895,-471.24,0.00021807,3]
[385409300,1757843446905,-1000.0,0.00021817,2]
[385409301,1757843446915,-24374.46280737,0.00021817,3]
[385409302,1757843446927,-905.33778499,0.00021817,3]
[385409322,1757843805986,1000.0,0.00030168,50]
[385409323,1757843820554,10000.0,0.00027397,120]
[385409324,1757843827804,10000.0,0.00027397,120]
[385409325,1757843838686,271.0,0.00024,30]
[385409339,1757844002499,220.9788856,0.00017971,2]
[385409349,1757844294857,-283.72727487,0.00018919,2]
[385409350,1757844298034,-208.66498078,0.00018919,2]
[385409351,1757844300524,-262.58266272,0.00018919,2]
[385409353,1757844302966,-551.74921363,0.00018919,2]
[385409354,1757844306715,-489.17505124,0.00018919,2]
[385409355,1757844308422,-309.14506283,0.00018919,2]
[385409356,1757844310874,-439.66433636,0.00018919,2]
[385409357,1757844312958,-501.40406308,0.00018919,2]
[385409358,1757844315479,-235.31417738,0.0001911,2]
[385409359,1757844315503,-51.75137939,0.000199,2]
[385409361,1757844318651,-325.97162772,0.00018919,2]
[385409362,1757844320190,-263.86428375,0.00018919,2]
[385409364,1757844322075,-172.05962642,0.00018919,2]
[385409365,1757844324058,-237.8870396,0.00018919,2]
[385409366,1757844326573,-154.43571093,0.00018919,2]
[385409367,1757844330363,-187.74446072,0.00018919,2]
[385409368,1757844331897,-208.42979622,0.00018919,2]
[385409369,1757844334423,-263.37664868,0.00018919,2]
[385409370,1757844335892,-161.32346793,0.00018919,2]
[385409372,1757844345510,-157.57404321,0.00018919,2]
[385409373,1757844347126,-409.96063973,0.00018919,2]
[385409374,1757844348759,-357.91125037,0.00018919,2]
[385409375,1757844351444,-461.84663871,0.00018919,2]
[385409376,1757844353510,-344.53808471,0.00018919,2]
[385409377,1757844355057,-418.02918404,0.00018919,2]
[385409378,1757844356666,-319.20629834,0.00018919,2]
[385409379,1757844358468,-399.19777722,0.00018919,2]
[385409380,1757844360024,-156.6434217,0.00018919,2]
[385409381,1757844362251,-5000.0,0.0001873,2]
[385409395,1757844581372,-180.50468822,0.00019504,2]
[385409396,1757844584062,-206.78075395,0.00019504,2]
[385409397,1757844585554,-273.06939435,0.00019504,2]
[385409398,1757844587572,-222.04637424,0.00019504,2]
[385409399,1757844589751,-244.6084825,0.00019504,2]
[385409400,1757844591262,-448.13803104,0.00019504,2]
[385409401,1757844594920,-355.6001215,0.00019504,2]
[385409402,1757844597385,-213.58288526,0.00019504,2]
[385409403,1757844597748,-2855.66926894,0.00019504,2]
[385409404,1757844604878,2287.02535578,0.00019701,2]
[385409449,1757844632068,-1365.99114075,0.0001978,2]
[385409451,1757844632078,-3390.33098127,0.000199,2]
[385409453,1757844632087,-201.59067103,0.00020686,2]
[385409455,1757844632097,-3175.0993157,0.00020955,2]
[385409457,1757844632106,-300.0,0.00021148,2]
[385409459,1757844632116,-1903.79279929,0.00021149,2]
[385409466,1757844632172,-500.0,0.00021149,2]
[385409609,1757844637910,-986.53818184,0.00021149,2]
[385409610,1757844637919,-170.14290619,0.00021327,2]
[385409611,1757844637928,-501.45647709,0.00021373,2]
[385409612,1757844637938,-500.0,0.00021373,2]
[385409613,1757844637947,-311.62460643,0.00021373,2]
[385409614,1757844637956,-500.77986851,0.00021373,2]
[385409615,1757844637966,-500.0,0.00021373,2]
[385409616,1757844637976,-500.0,0.00021373,2]
[385409617,1757844637985,-202.29655591,0.00021376,2]
[385409618,1757844637995,-500.0,0.00021376,2]
[385409619,1757844638004,-362.97334332,0.00021376,2]
[385409620,1757844638014,-4869.3,0.00021377,3]
[385409621,1757844638023,-2434.65,0.00021377,3]
[385409622,1757844638032,-1217.32,0.00021377,3]
[385409623,1757844638042,-608.66,0.00021377,3]
[385409624,1757844638051,-304.33,0.00021377,3]
[385409625,1757844638061,-152.17,0.00021377,3]
[385409626,1757844638070,-456.53,0.00021377,3]
[385409627,1757844638080,-162.18,0.00021377,10]
[385409628,1757844638089,-810.92,0.00021377,10]
[385409629,1757844638098,-289.91917811,0.00021386,2]
[385409630,1757844638107,-500.0,0.00021386,2]
[385409631,1757844638117,-298.61138239,0.00021386,2]
[385409632,1757844638127,-500.0,0.00021386,2]
[385409633,1757844638136,-500.0,0.00021386,2]
[385409634,1757844638145,-500.0,0.00021386,2]
[385409635,1757844638154,-315.52023993,0.00021386,2]
[385409636,1757844638165,-184.47976007,0.00021386,2]
[385409637,1757844638174,-500.0,0.00021386,2]
[385409638,1757844638183,-349.80023993,0.00021386,2]
[385409639,1757844638196,-150.19976007,0.00021386,2]
[385409640,1757844638205,-500.0,0.00021386,2]
[385409641,1757844638214,-500.0,0.00021386,2]
[385409642,1757844638224,-500.0,0.00021386,2]
[385409644,1757844638233,-53.36200256,0.00021386,2]
[385409645,1757844638244,-390.19957396,0.00021386,2]
[385409647,1757844638255,-56.43842348,0.00021386,2]
[385409648,1757844638264,-500.0,0.00021386,2]
[385409649,1757844638273,-385.9660952,0.00021386,2]
[385409650,1757844638282,-206.69548132,0.00021386,2]
[385409667,1757844640056,-293.30451868,0.00021386,2]
[385409668,1757844640066,-500.0,0.00021386,2]
[385409669,1757844640075,-214.81993399,0.00021386,2]
[385409671,1757844640110,-285.18006601,0.00021386,2]
[385409672,1757844640119,-154.57675734,0.00021386,2]
[385409674,1757844640451,-35.26117262,0.00021386,2]
[385409675,1757844640470,-310.16207004,0.00021386,2]
[385409676,1757844640481,-500.0,0.00021386,2]
[385409677,1757844640491,-500.0,0.00021386,2]
[385409678,1757844640500,-350.0,0.00021386,2]
[385409679,1757844640509,-500.0,0.00021386,2]
[385409680,1757844640518,-35092.23902659,0.00021387,2]
[385409685,1757844643290,-1986.85252994,0.00021387,2]
[385409686,1757844643303,-3785.32477194,0.00021387,2]
[385409752,1757844646110,-3000.0,0.00021387,2]
[385409764,1757844646216,-9771.87860151,0.00021387,2]
[385430414,1757844868294,-3164.30891576,0.000199,2]
[385430418,1757844868322,-237.8870396,0.00020431,2]
[385430422,1757844868353,-31.30917356,0.00021149,2]
[385430432,1757844868438,-624.99550078,0.00021149,2]
[385430435,1757844868475,-2508.00424138,0.00021149,2]
[385430505,1757844869303,1384.7194644,0.00019701,2]
[385430720,1757844871204,1479.268,0.00027397,120]
[385431784,1757844883756,233.54,0.00021277,10]
[385432210,1757844894200,3195.47,0.00021277,3]
[385432211,1757844895017,170.27205284,0.00021286,2]
[385432212,1757844895042,329.72794716,0.00021286,2]
[385432213,1757844895400,500.0,0.00021286,2]
[385432214,1757844895728,604.34922928,0.00021286,2]
[385432215,1757844896040,500.0,0.00021286,2]
[385432216,1757844898224,463.42143325,0.00021286,2]
[385432217,1757844898548,500.0,0.00021286,2]
[385432218,1757844898611,500.0,0.00021286,2]
[385432219,1757844899137,500.0,0.00021286,2]
[385432220,1757844899163,500.0,0.00021286,2]
[385432221,1757844899417,500.0,0.00021286,2]
[385432222,1757844899449,269.70971889,0.00021286,2]
[385432223,1757844899475,500.0,0.00021286,2]
[385432224,1757844899501,303.78827659,0.00021286,2]
[385432225,1757844899525,500.0,0.00021286,2]
[385432226,1757844899559,500.0,0.00021286,2]
[385432227,1757844899590,500.0,0.00021286,2]
[385432228,1757844899618,328.47101954,0.00021286,2]
[385432229,1757844899644,500.0,0.00021286,2]
[385432230,1757844899669,500.0,0.00021286,2]
[385432231,1757844899696,500.0,0.00021286,2]
[385432232,1757844899722,500.0,0.00021286,2]
[385432233,1757844899748,200.54237529,0.00021286,2]
[385432234,1757844899771,299.45762471,0.00021286,2]
[385432235,1757844899800,500.0,0.00021286,2]
[385432239,1757844903375,300.0,0.00021285,2]
[385432240,1757844903471,300.0,0.00021285,2]
[385432244,1757844903777,1200.0,0.00021285,2]
[385432245,1757844904164,300.0,0.00021285,2]
[385432247,1757844904793,1597.74,0.00021277,3]
[385432248,1757844915420,798.87,0.00021277,3]
[385432249,1757844926033,399.43,0.00021277,3]
[385432250,1757844928501,173.0770525,0.00021273,2]
[385432251,1757844936658,199.72,0.00021277,3]
[385432252,1757844947278,599.17,0.00021277,3]
[385432253,1757844963105,300.0,0.00021286,2]
[385432254,1757844978901,2953.35498816,0.000199,2]
[385432255,1757844979005,79.19033463,0.00021149,2]
[385432256,1757844979030,2874.16465337,0.00021149,2]
[385432257,1757844983528,574.21901478,0.00020821,2]
[385432258,1757845023513,300.0,0.00021286,2]